bitfinex-derivatives/quotes_BTCF0:USTF0_20251202
["timestamp","ask_amount","ask_price","bid_price","bid_amount"]
[1764702374711,0.51989631,92171.0,92170.0,0.05293254]
[1764702374913,0.0686486,92161.0,92160.0,0.3608]
[1764702375218,0.0686506,92144.0,92143.0,0.39002]
[1764702375414,0.11398595,92144.0,92143.0,1.01738983]
[1764702375609,0.11398595,92144.0,92143.0,0.96562]
[1764702375610,0.0686506,92144.0,92143.0,0.96562]
[1764702375810,0.04564088,92144.0,92143.0,1.30908013]
[1764702376511,0.0399998,92151.0,92150.0,0.05752]
[1764702376713,0.08544045,92151.0,92150.0,0.43752]
[1764702377017,0.10324065,92151.0,92150.0,0.50193736]
[1764702377213,0.11409035,92151.0,92150.0,0.43356746]
[1764702377607,0.0686497,92151.0,92150.0,0.38]
[1764702377812,0.11427655,92151.0,92150.0,0.4317493]
[1764702378017,0.11427655,92151.0,92150.0,0.4367493]
[1764702378405,0.11427655,92151.0,92150.0,0.4327493]
[1764702378601,0.11427655,92151.0,92150.0,0.4367493]
[1764702378814,0.0686497,92151.0,92150.0,0.385]
[1764702379006,0.33509851,92151.0,92150.0,0.05735243]
[1764702379406,0.33511237,92151.0,92150.0,0.05336806]
[1764702379612,0.11511237,92151.0,92150.0,0.05736806]
[1764702379820,0.11511237,92151.0,92150.0,0.005]
[1764702379821,0.0686497,92151.0,92150.0,0.005]
[1764702380816,0.0686497,92151.0,92150.0,0.001]
[1764702381014,0.11406514,92151.0,92150.0,0.05698029]
[1764702381714,0.0686497,92151.0,92150.0,0.004]
[1764702382111,0.11426869,92151.0,92150.0,0.05572425]
[1764702382608,0.11415737,92151.0,92150.0,0.05768215]
[1764702382812,0.11415737,92151.0,92150.0,0.004]
[1764702382813,0.0686497,92151.0,92150.0,0.004]
[1764702383016,0.11415737,92151.0,92150.0,0.05768215]
[1764702383214,0.11415737,92151.0,92141.0,0.5056]
[1764702383215,0.0578,92135.0,92134.0,0.00016275]
[1764702383422,0.0686516,92135.0,92134.0,0.00016275]
[1764702383616,0.11514292,92135.0,92134.0,0.00016275]
[1764702383917,0.11514292,92135.0,92134.0,0.41848275]
[1764702383918,0.10429132,92135.0,92134.0,0.41848275]
[1764702384229,0.10429132,92135.0,92134.0,0.81848275]
[1764702384410,0.0598,92135.0,92134.0,0.81848275]
[1764702384609,0.0638,92135.0,92134.0,0.81848275]
[1764702385115,0.11041275,92135.0,92134.0,0.87065729]
[1764702385516,0.0638,92135.0,92134.0,0.00016275]
[1764702386416,0.42109419,92135.0,92134.0,0.05304079]
[1764702386609,0.0686537,92117.0,92116.0,0.39002]
[1764702387405,0.0578,92117.0,92116.0,0.41832]
[1764702387606,0.10797557,92117.0,92116.0,0.47056195]
[1764702388022,0.10797557,92117.0,92116.0,0.48335524]
[1764702388417,0.0618,92117.0,92116.0,0.43111329]
[1764702388619,0.10846217,92117.0,92116.0,0.4836161]
[1764702389315,0.10946217,92117.0,92116.0,0.4836161]
[1764702389816,0.12031587,92117.0,92116.0,0.4836161]
[1764702390026,0.0736537,92117.0,92116.0,0.43111329]
[1764702390211,0.0736537,92117.0,92116.0,0.07031329]
[1764702390412,0.0736537,92117.0,92116.0,0.08116719]
[1764702391019,0.11882247,92117.0,92116.0,0.13481963]
[1764702391323,0.11882247,92117.0,92116.0,0.12396573]
[1764702391526,0.12044361,92117.0,92116.0,0.12344464]
[1764702391830,0.005,92117.0,92116.0,0.49031329]
[1764702392410,0.05178187,92117.0,92116.0,0.54343551]
[1764702392818,0.005,92117.0,92116.0,0.49031329]
[1764702393524,0.05089269,92117.0,92116.0,0.54347365]
[1764702394122,0.05089269,92117.0,92116.0,0.48595365]
[1764702394330,0.04589269,92117.0,92116.0,0.56960007]
[1764702394531,0.0684427,92126.0,92125.0,0.0196723]
[1764702394727,0.07418794,92126.0,92125.0,0.9453523]
[1764702395927,0.04619794,92126.0,92125.0,0.9453523]
[1764702396131,0.06860454,92135.0,92134.0,0.0555917]
[1764702396327,0.06860454,92135.0,92134.0,0.04474]
[1764702397226,0.06960454,92135.0,92134.0,0.05074]
[1764702397628,0.06960454,92135.0,92129.0,0.3223918]
[1764702397926,0.05759,92131.0,92130.0,0.0108522]
[1764702398116,0.0684427,92126.0,92125.0,0.5175327]
[1764702398320,0.05759,92126.0,92125.0,0.9375727]
[1764702398726,0.05759,92126.0,92125.0,0.9365727]
[1764702399537,0.05859,92126.0,92125.0,0.9365727]
[1764702400716,0.06159,92126.0,92125.0,0.9365727]
[1764702401323,0.004,92126.0,92125.0,0.9365727]
[1764702402220,0.00016284,92135.0,92125.0,0.9365727]
[1764702402221,0.00016284,92135.0,92134.0,0.0108517]
[1764702402417,0.04444,92140.0,92139.0,0.0108511]
[1764702402621,0.07404,92140.0,92139.0,0.3008511]
[1764702402827,0.01645,92140.0,92139.0,0.8065711]
[1764702403029,0.07404,92150.0,92149.0,0.01085]
[1764702403229,0.07404,92150.0,92149.0,0.51657]
[1764702404130,0.07404,92150.0,92149.0,0.50572]
[1764702404331,0.07404,92150.0,92140.0,0.00016284]
[1764702404332,0.05759,92141.0,92140.0,0.04013956]
[1764702404636,0.05759,92141.0,92140.0,0.54585956]
[1764702405242,0.05759,92141.0,92140.0,0.51673384]
[1764702405433,0.01796,92142.0,92140.0,0.88673384]
[1764702405635,0.07504,92150.0,92149.0,0.01085]
[1764702406731,0.001,92150.0,92149.0,0.37085]
[1764702407041,0.001,92150.0,92149.0,0.47085]
[1764702407840,0.001,92150.0,92149.0,0.37085]
[1764702408137,0.05775284,92159.0,92158.0,0.0108489]
[1764702408442,0.05775284,92159.0,92158.0,0.9165289]
[1764702408830,0.00016284,92159.0,92158.0,0.9165289]
[1764702409335,0.02815284,92159.0,92158.0,0.6365289]
[1764702409543,0.05775284,92159.0,92158.0,0.6365289]
[1764702410237,0.06075284,92159.0,92158.0,0.001]
[1764702410743,0.06075284,92159.0,92158.0,0.002]
[1764702411340,0.05759,92152.0,92151.0,0.50564]
[1764702411533,0.4292396,92152.0,92151.0,0.50564]
[1764702412531,0.0108509,92141.0,92140.0,0.00016284]
[1764702412736,0.0684409,92141.0,92140.0,0.16016284]
[1764702413037,0.05759,92141.0,92140.0,0.66580284]
[1764702413237,0.05759,92141.0,92140.0,0.86580284]
[1764702413443,0.04595,92151.0,92150.0,0.0108499]
[1764702413643,0.07555,92151.0,92150.0,0.0108499]
[1764702414846,0.05759,92148.0,92140.0,0.70761714]
[1764702415143,0.05759,92145.0,92144.0,0.0108505]
[1764702415341,0.05759,92145.0,92144.0,0.6256]
[1764702416348,0.05859,92145.0,92144.0,0.6326]
[1764702416847,0.05859,92145.0,92144.0,0.6336]
[1764702418537,0.05859,92145.0,92144.0,0.8536]
[1764702419037,0.05859,92145.0,92144.0,0.6436]
[1764702420136,0.41939,92145.0,92144.0,0.6436]
[1764702420650,0.41939,92145.0,92144.0,0.8736]
[1764702420944,0.001,92145.0,92144.0,0.8736]
[1764702421151,0.05859,92145.0,92144.0,0.8736]
[1764702421330,0.41939,92145.0,92144.0,0.5836]
[1764702421535,0.41939,92145.0,92144.0,0.5136]
[1764702421845,0.41939,92145.0,92144.0,0.008]
[1764702422337,0.0684409,92141.0,92140.0,0.00016284]
[1764702422537,0.0684409,92141.0,92121.0,0.06920485]
[1764702422538,0.068443,92123.0,92121.0,0.02913095]
[1764702422744,0.068443,92123.0,92122.0,0.3586]
[1764702423043,0.41839,92123.0,92122.0,0.3586]
[1764702423236,0.09514,92124.0,92123.0,0.019703]
[1764702423434,0.09514,92124.0,92123.0,0.028553]
[1764702423747,0.45594,92124.0,92123.0,0.028553]
[1764702424443,0.45594,92124.0,92123.0,0.378553]
[1764702424749,0.37892284,92133.0,92132.0,0.028552]
[1764702424750,0.00016284,92133.0,92132.0,0.028552]
[1764702424937,0.00016284,92133.0,92132.0,0.769352]
[1764702425138,0.00016284,92133.0,92132.0,0.79848295]
[1764702425447,0.00016284,92133.0,92132.0,0.80818541]
[1764702425948,0.00016284,92133.0,92132.0,0.769352]
[1764702426138,0.00116284,92133.0,92132.0,0.769352]
[1764702426441,0.00116284,92133.0,92132.0,0.80818541]
[1764702426748,0.09514,92151.0,92150.0,0.0285499]
[1764702426938,0.09514,92151.0,92150.0,0.4485499]
[1764702427746,0.09514,92151.0,92150.0,0.1585499]
[1764702428636,0.09614,92151.0,92150.0,0.1585499]
[1764702429143,0.09614,92151.0,92150.0,0.1595499]
[1764702430336,0.09614,92151.0,92150.0,0.131]
[1764702430551,0.09614,92151.0,92150.0,0.001]
[1764702431536,0.07718,92143.0,92142.0,0.02917209]
[1764702431742,0.0880307,92143.0,92142.0,0.53477209]
[1764702432146,0.09365,92142.0,92141.0,0.00016284]
[1764702433234,0.09465,92142.0,92141.0,0.00116284]
[1764702433645,0.09365,92142.0,92141.0,0.00116284]
[1764702433948,0.09465,92142.0,92141.0,0.00116284]
[1764702435950,0.088032,92132.0,92131.0,0.5056]
[1764702437742,0.088032,92132.0,92131.0,0.5066]
[1764702438346,0.089032,92132.0,92131.0,0.5056]
[1764702438545,0.089032,92132.0,92131.0,0.5066]
[1764702438742,0.088032,92132.0,92131.0,0.5066]
[1764702438942,0.089032,92132.0,92131.0,0.5066]
[1764702439248,0.088033,92123.0,92122.0,0.00016284]
[1764702441645,0.07818,92123.0,92122.0,0.00016284]
[1764702442252,0.07818,92123.0,92122.0,0.00901284]
[1764702443557,0.07818,92123.0,92122.0,0.00016284]
[1764702443857,0.09365,92115.0,92112.0,0.50564]
[1764702444071,0.07718,92108.0,92107.0,0.00012825]
[1764702444355,0.07718,92108.0,92091.0,0.03889612]
[1764702444356,0.07718,92092.0,92091.0,0.03889612]
[1764702444547,0.07718,92092.0,92086.0,0.05835165]
[1764702444548,0.1045072,92088.0,92087.0,0.01387695]
[1764702444746,0.0880374,92086.0,92085.0,0.03889612]
[1764702445142,0.07718,92085.0,92084.0,0.03889612]
[1764702445459,0.0880376,92084.0,92083.0,0.07718612]
[1764702445955,0.07718,92084.0,92083.0,0.11432612]
[1764702446157,0.07718,92084.0,92083.0,0.07543]
[1764702447856,0.07818,92084.0,92083.0,0.07543]
[1764702448054,0.07818,92084.0,92083.0,0.07643]
[1764702449546,0.07718,92082.0,92081.0,0.010858]
[1764702449751,0.07718,92082.0,92081.0,0.086288]
[1764702449752,0.43798,92082.0,92081.0,0.086288]
[1764702449947,0.07718,92082.0,92081.0,0.086288]
[1764702450149,0.07718,92082.0,92081.0,0.456288]
[1764702450452,0.001,92084.0,92083.0,0.07643]
[1764702450761,9.63e-05,92086.0,92085.0,0.07543]
[1764702451063,9.63e-05,92086.0,92085.0,0.42543]
[1764702452260,0.0050963,92086.0,92085.0,0.42543]
[1764702452855,0.0070963,92086.0,92085.0,0.42543]
[1764702457656,0.0452663,92086.0,92085.0,0.46428337]
[1764702457864,0.0452663,92086.0,92085.0,0.42543]
[1764702458062,0.0070963,92086.0,92085.0,0.42543]
[1764702458251,0.0070963,92086.0,92085.0,0.46428337]
[1764702458651,0.00016284,92095.0,92094.0,0.07994]
[1764702458857,0.00016284,92095.0,92094.0,1.37654]
[1764702459059,0.00016284,92095.0,92094.0,1.3873965]
[1764702459458,0.07732,92115.0,92114.0,0.0907941]
[1764702459852,0.03817,92115.0,92114.0,0.0907941]
[1764702460054,0.07732,92115.0,92114.0,0.0907941]
[1764702460662,0.10116,92115.0,92114.0,0.0927941]
[1764702461566,0.07832,92115.0,92114.0,0.0957941]
[1764702461765,0.07832,92115.0,92114.0,0.08494]
[1764702462459,0.07832,92115.0,92114.0,0.08594]
[1764702463055,0.07832,92115.0,92114.0,0.08694]
[1764702463355,0.10116,92115.0,92114.0,0.006]
[1764702463555,0.10016,92115.0,92114.0,0.001]
[1764702463761,0.10116,92115.0,92114.0,0.007]
[1764702464666,0.10016,92115.0,92114.0,0.001]
[1764702464867,0.10116,92115.0,92114.0,0.005]
[1764702465067,0.10116,92115.0,92114.0,0.006]
[1764702466163,0.10116,92115.0,92114.0,0.08594]
[1764702466363,0.07832,92115.0,92114.0,0.08594]
[1764702466673,0.001,92115.0,92114.0,0.30594]
[1764702467165,0.07832,92115.0,92114.0,0.30594]
[1764702468069,0.10116,92115.0,92114.0,0.30594]
[1764702470655,0.10116,92115.0,92114.0,0.006]
[1764702473166,0.10116,92115.0,92114.0,0.0459]
[1764702473359,0.10116,92115.0,92114.0,0.08594]
[1764702475658,0.001,92115.0,92114.0,0.08594]
[1764702476971,0.001,92115.0,92114.0,0.47594]
[1764702479272,0.43912,92115.0,92114.0,0.08594]
[1764702479964,0.43912,92115.0,92114.0,0.006]
[1764702480573,0.65912,92115.0,92114.0,0.006]
[1764702480770,0.65912,92115.0,92093.0,0.038871]
[1764702480771,0.0881764,92094.0,92093.0,0.038871]
[1764702480974,0.0881777,92083.0,92082.0,0.078771]
[1764702481167,0.07732,92081.0,92080.0,0.0399]
[1764702481367,0.10016,92070.0,92069.0,0.0399]
[1764702481571,0.10016,92070.0,92056.0,0.02299]
[1764702481572,0.0881801,92063.0,92062.0,0.038871]
[1764702481775,0.07732,92054.0,92053.0,0.07893393]
[1764702481979,0.03817,92054.0,92053.0,0.54897393]
[1764702482178,0.03817,92054.0,92053.0,0.51010293]
[1764702482381,0.0490306,92060.0,92059.0,0.07994]
[1764702482577,0.07732,92056.0,92055.0,0.050761]
[1764702482772,0.07732,92056.0,92055.0,0.2999]
[1764702483277,0.07732,92056.0,92055.0,0.310761]
[1764702483484,0.3608,92061.0,92060.0,0.0838005]
[1764702483672,0.07465,92064.0,92063.0,0.0838]
[1764702484370,0.3716593,92070.0,92069.0,0.07294]
[1764702484573,0.4463093,92070.0,92069.0,0.07294]
[1764702484980,0.4702993,92070.0,92069.0,0.07294]
[1764702485283,0.08551,92065.0,92064.0,0.07294]
[1764702485683,0.02399,92060.0,92059.0,0.0108606]
[1764702485980,0.02284,92079.0,92071.0,0.07294]
[1764702486182,0.02284,92079.0,92071.0,0.43294]
[1764702486383,0.07481293,92072.0,92071.0,0.43294]
[1764702486968,0.07465,92067.0,92066.0,0.03657]
[1764702487185,0.07465,92067.0,92066.0,0.04]
[1764702487982,0.09864,92070.0,92069.0,0.0108594]
[1764702489069,0.09864,92070.0,92069.0,0.0837994]
[1764702489269,0.00016293,92072.0,92071.0,0.07294]
[1764702489588,0.00016293,92072.0,92071.0,0.44294]
[1764702490169,0.03613293,92072.0,92071.0,0.44294]
[1764702490377,0.03613293,92072.0,92071.0,0.08294]
[1764702490378,0.43561293,92072.0,92071.0,0.08294]
[1764702490576,0.07581293,92072.0,92071.0,0.0837992]
[1764702490875,0.07781293,92072.0,92071.0,0.0837992]
[1764702491271,0.43861293,92072.0,92071.0,0.03657]
[1764702491474,0.0855096,92067.0,92066.0,0.03657]
[1764702491679,0.0855096,92067.0,92065.0,0.0108598]
[1764702491973,0.07465,92064.0,92063.0,0.0838001]
[1764702492583,0.07465,92064.0,92063.0,0.0108601]
[1764702492794,0.07465,92064.0,92063.0,0.0838001]
[1764702493179,0.07465,92061.0,92060.0,0.50584]
[1764702493686,0.07465,92061.0,92060.0,0.03657]
[1764702493877,0.07465,92061.0,92060.0,0.07294]
[1764702494277,0.1094994,92070.0,92069.0,0.07294]
[1764702494489,0.07465,92070.0,92069.0,0.07294]
[1764702494780,0.36096293,92072.0,92071.0,0.07294]
[1764702494981,0.43561293,92072.0,92071.0,0.07294]
[1764702495182,0.43561293,92072.0,92071.0,0.03657]
[1764702495587,0.43561293,92072.0,92071.0,0.07294]
[1764702495778,0.43561293,92072.0,92071.0,0.03657]
[1764702495975,0.0855092,92071.0,92070.0,0.0108592]
[1764702496174,0.0855092,92071.0,92070.0,0.0474292]
[1764702496372,0.0855092,92071.0,92070.0,0.0837992]
[1764702498187,0.0865092,92071.0,92070.0,0.0837992]
[1764702498378,0.07565,92071.0,92070.0,0.0847992]
[1764702498972,0.001,92071.0,92070.0,0.8285892]
[1764702499777,0.001,92071.0,92070.0,1.3344692]
[1764702500272,0.0468271,92089.0,92088.0,0.0108569]
[1764702500472,0.3608,92091.0,92088.0,0.0837969]
[1764702500683,0.3608,92091.0,92090.0,0.09077]
[1764702500882,0.4463056,92101.0,92100.0,0.07294]
[1764702501585,0.4463056,92101.0,92091.0,0.00016293]
[1764702501586,0.0108567,92094.0,92093.0,0.0108566]
[1764702501884,0.0855067,92094.0,92093.0,0.07294]
[1764702502978,0.0855067,92094.0,92093.0,0.07394]
[1764702503179,0.0865067,92094.0,92093.0,0.07394]
[1764702503583,0.0855067,92094.0,92093.0,0.07394]
[1764702503784,0.0865067,92094.0,92093.0,0.002]
[1764702508295,0.0865067,92094.0,92093.0,0.03857]
[1764702508595,0.07565,92094.0,92093.0,0.07494]
[1764702509091,0.07565,92094.0,92093.0,0.03857]
[1764702509295,0.07565,92094.0,92093.0,0.002]
[1764702509994,0.07565,92094.0,92093.0,0.03857]
[1764702510195,0.07565,92094.0,92093.0,0.002]
[1764702511192,0.07565,92094.0,92093.0,0.03857]
[1764702511983,0.07565,92094.0,92093.0,0.07494]
[1764702513595,0.07565,92094.0,92093.0,0.002]
[1764702515498,0.06607,92082.0,92081.0,0.02911878]
[1764702515697,0.0966882,92079.0,92078.0,0.3608]
[1764702516003,0.0966882,92079.0,92076.0,0.02911878]
[1764702516004,0.06607,92077.0,92076.0,0.0766885]
[1764702516197,0.3608,92086.0,92085.0,0.0766875]
[1764702516198,0.42687,92086.0,92085.0,0.0766875]
[1764702516397,0.06607,92086.0,92085.0,0.0766875]
[1764702516600,0.06607,92086.0,92085.0,0.06583]
[1764702516800,0.0769281,92080.0,92079.0,0.06583]
[1764702516990,0.0769281,92080.0,92079.0,0.37583]
[1764702517791,0.0769281,92080.0,92079.0,0.34225]
[1764702518000,0.0108585,92077.0,92076.0,0.02928171]
[1764702518204,0.0769285,92077.0,92076.0,0.00016293]
[1764702519490,0.0819285,92077.0,92076.0,0.00016293]
[1764702519901,0.3019285,92077.0,92076.0,0.00016293]
[1764702520489,0.0819285,92077.0,92076.0,0.00016293]
[1764702521001,0.0779285,92077.0,92076.0,0.00016293]
[1764702521206,0.0779285,92077.0,92076.0,0.00116293]
[1764702523697,0.0769296,92067.0,92066.0,0.0108597]
[1764702523898,0.0769296,92067.0,92066.0,0.0908597]
[1764702524905,0.0769296,92067.0,92066.0,0.1241097]
[1764702525105,0.06707,92067.0,92066.0,0.4276897]
[1764702525305,0.001,92067.0,92066.0,0.4276897]
[1764702526205,0.001,92067.0,92066.0,0.45692595]
[1764702527112,0.001,92067.0,92066.0,0.19692595]
[1764702527407,0.06707,92067.0,92066.0,0.19692595]
[1764702527599,0.06707,92067.0,92066.0,0.1676897]
[1764702527796,0.06707,92067.0,92066.0,0.0118597]
[1764702528409,0.06707,92067.0,92066.0,0.001]
[1764702531116,0.42787,92067.0,92066.0,0.001]
[1764702531705,0.06707,92067.0,92066.0,0.001]
[1764702531900,0.06707,92067.0,92066.0,0.06683]
[1764702532107,0.001,92067.0,92066.0,0.46683]
[1764702533911,0.00016293,92076.0,92075.0,0.06583]
[1764702534211,0.00016293,92076.0,92075.0,0.87671818]
[1764702534805,0.06623293,92076.0,92075.0,0.31591818]
[1764702535005,0.07709153,92076.0,92075.0,0.2208587]
[1764702535312,0.07709153,92076.0,92075.0,0.2531087]
[1764702535712,0.07709153,92076.0,92075.0,0.2866887]
[1764702535907,0.07709153,92076.0,92075.0,0.27583]
[1764702536112,0.07709153,92076.0,92075.0,0.27683]
[1764702536314,0.07709153,92076.0,92075.0,0.2876887]
[1764702536619,0.07809153,92076.0,92075.0,0.2876887]
[1764702538108,0.07809153,92076.0,92075.0,0.27683]
[1764702538514,0.07809153,92076.0,92075.0,0.001]
[1764702540111,0.06723293,92076.0,92075.0,0.06683]
[1764702540511,0.06723293,92076.0,92075.0,0.44683]
[1764702540710,0.00116293,92076.0,92075.0,0.44683]
[1764702541318,0.00116293,92076.0,92075.0,0.59267]
[1764702541517,0.00116293,92076.0,92075.0,0.63166132]
[1764702541818,0.00116293,92076.0,92075.0,0.59267]
[1764702542216,0.03528293,92076.0,92075.0,0.59267]
[1764702542415,0.03528293,92076.0,92075.0,0.63166132]
[1764702542604,0.06723293,92076.0,92075.0,0.06683]
[1764702542805,0.06723293,92076.0,92075.0,0.57267]
[1764702543020,0.06723293,92076.0,92075.0,0.60191841]
[1764702544019,0.06723293,92076.0,92075.0,0.09607841]
[1764702545314,0.06723293,92076.0,92075.0,0.0960921]
[1764702545616,0.06723293,92076.0,92075.0,0.001]
[1764702545809,0.41723293,92076.0,92075.0,0.001]
[1764702546011,0.06723293,92076.0,92075.0,0.001]
[1764702547323,0.06723293,92076.0,92075.0,0.06181]
[1764702548017,0.00116293,92076.0,92075.0,0.06181]
[1764702548217,0.00116293,92076.0,92075.0,0.44181]
[1764702548420,0.42405,92096.0,92095.0,0.06081]
[1764702548730,0.3608,92104.0,92103.0,0.06081]
[1764702548914,0.42405,92104.0,92103.0,0.06081]
[1764702549224,0.42405,92104.0,92103.0,0.03007]
[1764702549421,0.06325,92096.0,92095.0,0.09006735]
[1764702549725,0.0751062,92096.0,92095.0,0.06032735]
[1764702550425,0.0741062,92096.0,92095.0,0.03007]
[1764702550924,0.0751062,92096.0,92095.0,0.03107]
[1764702551525,0.06425,92096.0,92095.0,0.03107]
[1764702551728,0.06425,92096.0,92095.0,0.06181]
[1764702551915,0.06425,92096.0,92095.0,0.06281]
[1764702552828,0.06425,92096.0,92095.0,0.002]
[1764702553128,0.42505,92096.0,92095.0,0.002]
[1764702555027,0.42505,92096.0,92095.0,0.001]
[1764702555224,0.42505,92096.0,92095.0,0.002]
[1764702555225,0.64505,92096.0,92095.0,0.002]
[1764702555423,0.64505,92096.0,92095.0,0.004]
[1764702555924,0.64405,92096.0,92095.0,0.001]
[1764702556131,0.42505,92096.0,92095.0,0.004]
[1764702556630,0.42505,92096.0,92095.0,0.06481]
[1764702556822,0.42505,92096.0,92095.0,0.003]
[1764702557022,0.0741063,92095.0,92094.0,0.00016293]
[1764702558738,0.0741063,92095.0,92094.0,0.00116293]
[1764702559125,0.0751063,92095.0,92094.0,0.01601933]
[1764702559334,0.06425,92095.0,92094.0,0.01601933]
[1764702559933,0.0751063,92095.0,92094.0,0.01601933]
[1764702560239,0.0751063,92095.0,92094.0,0.00516293]
[1764702562142,0.0751063,92095.0,92094.0,0.06597293]
[1764702562441,0.06425,92095.0,92094.0,0.06597293]
[1764702565147,0.06425,92095.0,92094.0,0.00516293]
[1764702565345,0.06425,92095.0,92094.0,0.06597293]
[1764702566041,0.06425,92095.0,92094.0,0.00516293]
[1764702567039,0.001,92095.0,92094.0,0.07682933]
[1764702567234,0.001,92095.0,92094.0,0.83762933]
[1764702568043,0.42421293,92113.0,92112.0,0.0716643]
[1764702568243,0.03194293,92113.0,92112.0,0.0716643]
[1764702568547,0.07426713,92113.0,92112.0,0.0716643]
[1764702569142,0.07426713,92113.0,92112.0,0.06181]
[1764702569638,0.07426713,92113.0,92112.0,0.01419022]
[1764702570746,0.07426713,92113.0,92112.0,0.01519022]
[1764702570947,0.07526713,92113.0,92112.0,0.01819022]
[1764702572145,0.06441293,92113.0,92112.0,0.02904452]
[1764702572353,0.06441293,92113.0,92112.0,0.08985452]
[1764702573858,0.03294293,92113.0,92112.0,0.46985452]
[1764702574156,0.00116293,92113.0,92112.0,0.84797452]
[1764702574346,0.07608,92136.0,92135.0,0.0702216]
[1764702574548,0.05677,92136.0,92135.0,0.0702216]
[1764702575049,0.05677,92136.0,92130.0,0.3608]
[1764702575251,0.0676221,92131.0,92130.0,0.05937]
[1764702575460,0.05677,92131.0,92130.0,0.05937]
[1764702576466,0.02932,92131.0,92130.0,0.05937]
[1764702576849,0.05677,92131.0,92130.0,0.05937]
[1764702577759,0.05677,92131.0,92130.0,0.06037]
[1764702577961,0.0273996,92152.0,92138.0,0.05937]
[1764702577962,0.05677,92139.0,92138.0,0.05937]
[1764702578453,0.01655,92152.0,92138.0,0.42937]
[1764702578654,0.05677,92159.0,92158.0,0.0702188]
[1764702578859,0.0841676,92169.0,92168.0,0.02943]
[1764702579252,0.0676188,92160.0,92159.0,0.05937]
[1764702579558,0.0841688,92160.0,92159.0,0.05937]
[1764702580060,0.07332,92160.0,92159.0,0.05937]
[1764702580256,0.0841687,92160.0,92159.0,0.05937]
[1764702580756,0.0108496,92152.0,92150.0,0.00016275]
[1764702581063,0.05677,92151.0,92150.0,0.05953275]
[1764702581358,0.05677,92151.0,92150.0,0.56509275]
[1764702583347,0.05677,92151.0,92150.0,0.56609275]
[1764702583956,0.05677,92151.0,92150.0,0.03059275]
[1764702584163,0.05677,92151.0,92150.0,0.06053275]
[1764702585556,0.0841688,92160.0,92159.0,0.05937]
[1764702586151,0.0108477,92168.0,92150.0,0.00116275]
[1764702586357,0.3608,92172.0,92163.0,0.05937]
[1764702586358,0.05677,92164.0,92163.0,0.05937]
[1764702587355,0.07348275,92169.0,92168.0,0.05338398]
[1764702587956,0.001,92164.0,92161.0,0.0702185]
[1764702588156,0.05677,92162.0,92161.0,0.0702185]
[1764702589258,0.05777,92162.0,92161.0,0.0702185]
[1764702589662,0.05777,92162.0,92161.0,0.05937]
[1764702589663,0.41857,92162.0,92161.0,0.05937]
[1764702590266,0.41957,92162.0,92161.0,0.05937]
[1764702590568,0.0676186,92161.0,92160.0,0.0108486]
[1764702590867,0.05677,92161.0,92160.0,0.0702186]
[1764702591867,0.001,92162.0,92161.0,0.05937]
[1764702592659,0.03032,92162.0,92161.0,0.05937]
[1764702592961,0.01671275,92169.0,92160.0,0.0108486]
[1764702592962,0.05777,92161.0,92160.0,0.0108486]
[1764702593355,0.05677,92161.0,92160.0,0.0402786]
[1764702594166,0.05777,92161.0,92160.0,0.0402786]
[1764702594362,0.05777,92161.0,92158.0,0.5054]
[1764702594363,0.05677,92159.0,92158.0,0.5054]
[1764702594570,0.05677,92159.0,92158.0,0.59483]
[1764702594956,0.05677,92159.0,92158.0,0.06]
[1764702595665,0.05677,92159.0,92158.0,0.08943]
[1764702595857,0.05677,92159.0,92158.0,0.02943]
[1764702596062,0.05677,92159.0,92158.0,0.42937]
[1764702596259,0.001,92161.0,92159.0,0.0108488]
[1764702596458,0.001,92161.0,92160.0,0.07295]
[1764702596671,0.001,92161.0,92160.0,0.44295]
[1764702597175,0.0676178,92168.0,92167.0,0.02943]
[1764702597564,0.05677,92168.0,92167.0,0.02943]
[1764702598573,0.05677,92168.0,92167.0,0.03043]
[1764702599073,0.05677,92168.0,92167.0,0.03243]
[1764702599275,0.05677,92168.0,92167.0,0.04507205]
[1764702599866,0.05677,92168.0,92167.0,0.07401205]
[1764702600067,0.05677,92168.0,92167.0,0.07501205]
[1764702600272,0.0108464,92180.0,92167.0,0.07501205]
[1764702600273,0.05677,92184.0,92183.0,0.070216]
[1764702600475,1.8608,92201.0,92181.0,0.3608]
[1764702600769,0.02932,92182.0,92181.0,0.4310162]
[1764702600957,0.07332,92196.0,92195.0,0.0702146]
[1764702601157,0.07332,92196.0,92189.0,0.0108453]
[1764702601158,1.5,92201.0,92200.0,0.070214]
[1764702601363,1.5,92201.0,92200.0,0.42017]
[1764702601870,0.05693249,92210.0,92209.0,0.0702129]
[1764702602074,0.02948249,92210.0,92209.0,0.0702129]
[1764702602263,0.3716397,92237.0,92212.0,0.0702126]
[1764702602264,1.5,92213.0,92212.0,0.0702126]
[1764702602464,0.05677,92209.0,92208.0,0.42017]
[1764702602662,0.02932,92209.0,92208.0,0.42017]
[1764702602858,1.5,92213.0,92212.0,0.0700826]
[1764702603070,1.5,92213.0,92212.0,0.05924]
[1764702603267,1.501,92213.0,92212.0,0.05924]
[1764702603464,0.05615,92213.0,92212.0,0.04247632]
[1764702603774,0.05615,92213.0,92212.0,0.01266632]
[1764702603974,0.05515,92209.0,92208.0,0.39061]
[1764702604178,0.0659929,92209.0,92208.0,0.02981]
[1764702604674,0.0659929,92209.0,92208.0,0.04295604]
[1764702605080,0.065994,92200.0,92199.0,0.42004]
[1764702605273,0.05515,92195.0,92194.0,0.05924]
[1764702605470,0.05515,92195.0,92194.0,0.61448]
[1764702606067,0.02773,92200.0,92199.0,0.05924]
[1764702606371,0.05515,92209.0,92208.0,0.070083]
[1764702606576,0.05515,92223.0,92222.0,0.05924]
[1764702606871,0.05515,92223.0,92222.0,0.0700814]
[1764702607071,1.55515,92223.0,92222.0,0.0700814]
[1764702607266,1.55515,92223.0,92222.0,0.05924]
[1764702608676,1.5,92223.0,92222.0,0.05924]
[1764702608874,0.0659906,92229.0,92228.0,0.0700806]
[1764702609271,1.55515,92229.0,92228.0,0.4308806]
[1764702609469,0.05515,92239.0,92238.0,0.0108394]